bitfinex-derivatives/quotes_SOLF0:USTF0_20250613
["timestamp","ask_amount","ask_price","bid_price","bid_amount"]
[1749779417036,57.24,142.95,142.91,4.0]
[1749779417235,57.24,142.95,142.94,6.9904]
[1749779417942,57.24,142.95,142.91,8.7968]
[1749779418140,0.0514726,142.94,142.92,0.0520831]
[1749779418340,0.0514726,142.94,142.93,6.9909]
[1749779419040,56.6,143.0,142.92,0.0520831]
[1749779419241,169.56,142.99,142.92,12.24238245]
[1749779419439,56.6,143.0,142.92,12.24238245]
[1749779420135,0.05200046,142.97,142.96,6.9894]
[1749779420335,56.6,143.0,142.95,0.0459316]
[1749779421137,63.5876,143.0,142.95,7.0354316]
[1749779421342,0.04557086,142.99,142.95,7.0354316]
[1749779421737,12.28795331,142.99,142.95,0.0459316]
[1749779421934,12.24238245,142.97,142.95,0.0459316]
[1749779422148,169.46,142.96,142.95,0.0459316]
[1749779422342,176.4494,142.96,142.95,0.0459316]
[1749779422943,169.46,142.96,142.95,0.0459316]
[1749779423336,0.04557086,142.99,142.95,0.0459316]
[1749779423540,6.9888,142.98,142.95,0.0459316]
[1749779424246,6.9894,142.96,142.95,0.0459316]
[1749779424643,19.23178245,142.96,142.95,0.0459316]
[1749779425041,12.24238245,142.96,142.95,0.0459316]
[1749779425941,19.23178245,142.96,142.95,0.0459316]
[1749779426739,22.2608946,142.96,142.95,0.0459316]
[1749779426943,22.26089461,142.96,142.95,0.0459316]
[1749779427147,22.26085364,142.96,142.95,0.0459316]
[1749779427445,27.06017896,142.96,142.95,0.0459316]
[1749779427646,27.06001077,142.96,142.95,0.0459316]
[1749779428849,14.81762832,142.96,142.95,0.0459316]
[1749779429049,184.14942059,142.96,142.95,4.0459316]
[1749779429249,196.39180304,142.96,142.95,4.0459316]
[1749779429447,196.41321391,142.96,142.95,4.0459316]
[1749779429749,188.51178245,142.96,142.95,4.0459316]
[1749779430049,6.9894,142.96,142.95,4.0459316]
[1749779430246,179.31989749,142.96,142.95,4.0459316]
[1749779430444,179.31992397,142.96,142.95,4.0459316]
[1749779430651,179.31993674,142.96,142.95,4.0459316]
[1749779430850,179.31987693,142.96,142.95,4.0459316]
[1749779431447,176.2694,142.96,142.95,4.0459316]
[1749779431644,172.32834104,142.96,142.95,4.0459316]
[1749779431852,3.04435203,142.96,142.95,4.0459316]
[1749779432145,172.24435203,142.96,142.95,4.0459316]
[1749779432344,179.23382703,142.96,142.95,4.0459316]
[1749779432563,201.77596823,142.96,142.95,4.0459316]
[1749779432849,201.77599911,142.96,142.95,4.0459316]
[1749779433051,188.43178245,142.96,142.95,4.0459316]
[1749779433255,191.47598926,142.96,142.95,4.0459316]
[1749779433549,172.20419815,142.96,142.95,4.0459316]
[1749779433747,172.20440554,142.96,142.95,4.0459316]
[1749779433952,179.19380554,142.96,142.95,4.0459316]
[1749779434356,179.15380554,142.96,142.95,4.0459316]
[1749779434652,179.15391313,142.96,142.95,4.0459316]
[1749779434849,179.15351225,142.96,142.95,4.0459316]
[1749779435050,191.39590705,142.96,142.95,4.0459316]
[1749779435250,201.69764618,142.96,142.95,4.0459316]
[1749779435461,196.8539945,142.96,142.95,4.0459316]
[1749779435754,201.69969647,142.96,142.95,4.0459316]
[1749779435955,201.69950197,142.96,142.95,4.0459316]
[1749779436552,196.85536967,142.96,142.95,3.16e-05]
[1749779436852,201.69923752,142.96,142.95,3.16e-05]
[1749779437150,196.85511836,142.96,142.95,3.16e-05]
[1749779437350,201.69896116,142.96,142.95,3.16e-05]
[1749779437554,201.6989612,142.96,142.95,3.16e-05]
[1749779437855,201.70535881,142.96,142.95,3.16e-05]
[1749779438051,198.65954179,142.96,142.95,3.16e-05]
[1749779438353,201.70934439,142.96,142.95,3.16e-05]
[1749779438555,201.7092781,142.96,142.95,3.16e-05]
[1749779438754,6.9899,142.95,142.94,3.69e-05]
[1749779438957,72.09711891,142.95,142.94,3.69e-05]
[1749779439253,76.947192,142.95,142.94,3.69e-05]
[1749779439450,76.9471968,142.95,142.94,3.69e-05]
[1749779439757,76.94706219,142.95,142.94,3.69e-05]
[1749779439960,73.89737576,142.95,142.94,3.69e-05]
[1749779440150,73.89038658,142.95,142.94,3.69e-05]
[1749779440346,76.9400092,142.95,142.94,3.69e-05]
[1749779440558,76.9400092,142.95,142.94,4.0000369]
[1749779440761,76.94001191,142.95,142.94,4.0000369]
[1749779440950,76.93383673,142.95,142.94,4.0000369]
[1749779441144,73.89038928,142.95,142.94,4.0000369]
[1749779441353,76.93383043,142.95,142.94,4.0000369]
[1749779441746,69.04741431,142.95,142.94,3.69e-05]
[1749779442051,65.09578864,142.95,142.78,414.96238245]
[1749779442249,12.24238245,142.89,142.81,4.8013]
[1749779442445,168.88,142.88,142.81,4.8013]
[1749779442646,0.04603211,142.87,142.85,0.051797]
[1749779443151,0.04603211,142.87,142.86,6.9938]
[1749779444458,0.04603211,142.87,142.86,10.9938]
[1749779444656,225.46,142.89,142.88,6.9933]
[1749779444861,56.6,142.89,142.88,6.9933]
[1749779445161,62.9911,142.93,142.89,6.9925]
[1749779445358,168.8,142.92,142.86,4.0]
[1749779445555,168.8,142.91,142.86,4.0]
[1749779445756,0.05021135,142.9,142.88,6.993]
[1749779445955,0.05021135,142.9,142.87,0.05038168]
[1749779446560,0.05021135,142.9,142.87,7.04388168]
[1749779447255,7.04281135,142.9,142.87,7.04388168]
[1749779447460,0.05021135,142.9,142.87,0.05038168]
[1749779447664,6.9933,142.88,142.87,0.05038168]
[1749779448255,62.9933,142.88,142.87,0.05038168]
[1749779448663,66.03759746,142.88,142.87,0.05038168]
[1749779449264,66.03856437,142.88,142.87,0.05038168]
[1749779449459,64.52217087,142.88,142.8,2.3182]
[1749779449668,12.24238245,142.84,142.8,2.3182]
[1749779449862,224.66,142.83,142.77,2.2515]
[1749779450061,6.9975,142.8,142.77,9.25]
[1749779450565,0.05252938,142.8,142.77,2.30313912]
[1749779450764,12.24238245,142.79,142.77,0.05163912]
[1749779450965,63.0182,142.78,142.77,0.05163912]
[1749779451363,63.0182,142.78,142.77,4.05163912]
[1749779451566,66.06445559,142.78,142.77,4.05163912]
[1749779452162,12.24238245,142.79,142.77,4.05163912]
[1749779452163,56.02,142.83,142.77,4.05163912]
[1749779452558,63.0159,142.83,142.79,6.9974]
[1749779452868,56.02,142.83,142.78,2.192]
[1749779453069,56.02,142.83,142.82,6.9963]
[1749779453367,0.04985719,142.84,142.81,0.04521669]
[1749779453566,56.02,142.87,142.81,0.04521669]
[1749779454065,56.02,142.87,142.81,2.32181669]
[1749779454268,56.02,142.87,142.86,6.9943]
[1749779454865,0.04596512,142.88,142.87,6.9938]
[1749779455064,402.94,142.91,142.85,0.05009827]
[1749779455267,56.02,142.92,142.86,12.24238245]
[1749779455562,56.02,142.92,142.91,6.9919]
[1749779456466,0.04679443,142.93,142.92,6.9914]
[1749779457561,22.33008821,142.93,142.77,16.81278795]
[1749779457757,12.49038238,142.92,142.78,2.2786]
[1749779457958,12.24238245,142.86,142.78,2.2786]
[1749779458163,12.24238245,142.84,142.77,4.0]
[1749779458365,224.44,142.83,142.77,4.0]
[1749779458668,0.0522764,142.81,142.79,0.04810625]
[1749779458863,7.64e-05,142.81,142.79,0.04810625]
[1749779459169,7.64e-05,142.81,142.8,6.9972]
[1749779459362,7.64e-05,142.81,142.8,9.2609]
[1749779460269,7.64e-05,142.81,142.8,11.4801]
[1749779460870,7.64e-05,142.81,142.8,2.2637]
[1749779461266,7.64e-05,142.81,142.79,0.04810625]
[1749779461866,7.64e-05,142.81,142.79,4.04810625]
[1749779463276,7.64e-05,142.81,142.8,6.9972]
[1749779463867,20.84,143.29,142.8,7.0]
[1749779463868,56.04,142.87,142.8,7.0]
[1749779464065,56.04,142.87,142.81,2.3343]
[1749779464262,68.28238245,142.87,142.81,2.3343]
[1749779464470,3.04112257,142.86,142.81,2.3343]
[1749779464767,68.28238245,142.87,142.81,2.3343]
[1749779464968,0.04582257,142.85,142.83,6.9954]
[1749779465169,0.04582257,142.85,142.82,0.04896375]
[1749779465470,6.34676801,142.93,142.82,0.04896375]
[1749779465471,56.04,142.91,142.83,12.24238245]
[1749779465674,56.04,142.95,142.85,12.24238245]
[1749779465874,3.05193707,142.94,142.87,12.24238245]
[1749779466175,56.04,143.0,142.91,12.24238245]
[1749779466365,0.05374668,142.97,142.94,0.04464845]
[1749779466570,3.05262453,142.96,142.94,0.04464845]
[1749779466867,3.05218725,142.95,142.94,0.04464845]
[1749779467072,0.05374668,142.97,142.94,0.04464845]
[1749779467674,12.29612913,142.97,142.94,0.04464845]
[1749779467871,3.04483093,142.96,142.94,0.04464845]
[1749779468072,56.04,142.95,142.94,0.04464845]
[1749779468470,63.0299,142.95,142.94,0.04464845]
[1749779469176,68.28238245,142.95,142.94,0.04464845]
[1749779469373,71.3309853,142.95,142.83,14.60318245]
[1749779469577,3.04851305,142.94,142.84,2.264]
[1749779469974,56.04,142.95,142.85,12.24238245]
[1749779470171,3.04852792,142.94,142.85,12.24238245]
[1749779470374,0.04616319,142.91,142.9,6.992]
[1749779470787,0.04616319,142.91,142.88,0.04659274]
[1749779470975,68.26238245,142.9,142.88,0.04659274]
[1749779471177,68.26238245,142.9,142.77,403.02]
[1749779471178,70.45158245,142.9,142.78,4.3707]
[1749779471372,6.9951,142.85,142.81,6.9966]
[1749779471573,63.0151,142.85,142.81,6.9966]
[1749779471874,56.02,142.85,142.78,4.3707]
[1749779472080,0.04972108,142.83,142.82,6.9959]
[1749779472279,56.02,142.89,142.81,0.04501059]
[1749779472473,56.02,142.89,142.78,4.3707]
[1749779472474,56.02,142.89,142.82,12.24238245]
[1749779473283,0.04567213,142.87,142.84,0.04714085]
[1749779473874,0.04567213,142.87,142.86,6.9943]
[1749779474081,0.04567213,142.87,142.84,4.04714085]
[1749779474285,0.04567213,142.87,142.85,6.9945]
[1749779474485,0.04567213,142.87,142.84,4.04714085]
[1749779475077,0.04567213,142.87,142.85,6.9948]
[1749779475481,7.03947213,142.87,142.84,4.04714085]
[1749779475682,0.04567213,142.87,142.84,4.04714085]
[1749779475885,12.28805458,142.87,142.84,4.04714085]
[1749779476082,12.24238245,142.85,142.84,4.04714085]
[1749779476478,180.10238245,142.85,142.84,4.04714085]
[1749779476675,187.09718245,142.85,142.84,4.04714085]
[1749779477385,174.8548,142.85,142.84,4.04714085]
[1749779477576,187.09718245,142.85,142.84,4.04714085]
[1749779477781,167.86,142.85,142.84,4.04714085]
[1749779477982,167.86,142.85,142.84,11.04244085]
[1749779479082,167.86,142.85,142.84,4.04714085]
[1749779479290,0.04567213,142.87,142.84,4.04714085]
[1749779479787,7.213e-05,142.87,142.86,6.9943]
[1749779481584,7.213e-05,142.87,142.86,9.3729]
[1749779484784,7.213e-05,142.87,142.86,6.9943]
[1749779484982,7.213e-05,142.87,142.85,6.9946]
[1749779485584,7.213e-05,142.87,142.86,6.9943]
[1749779487590,7.213e-05,142.87,142.85,6.9946]
[1749779487890,7.213e-05,142.87,142.84,4.04714085]
[1749779488089,12.24238245,142.86,142.84,4.04714085]
[1749779489583,7.213e-05,142.87,142.84,4.04714085]
[1749779490390,7.213e-05,142.87,142.86,6.9943]
[1749779490890,7.213e-05,142.87,142.84,4.04714085]
[1749779491394,7.213e-05,142.87,142.86,6.9943]
[1749779492386,55.36,142.94,142.86,7.0]
[1749779492592,55.36,142.94,142.85,12.24238245]
[1749779492593,55.36,142.94,142.87,14.60228245]
[1749779492891,55.36,142.94,142.93,6.9908]
[1749779493186,0.0508942,142.95,142.92,0.04479867]
[1749779493492,458.34,142.99,142.91,12.24238245]
[1749779493686,458.34,142.99,142.97,6.9886]
[1749779493886,458.34,142.99,142.91,12.24238245]
[1749779494389,0.04667274,142.96,142.95,6.9899]
[1749779494590,0.04667274,142.96,142.94,0.046581]
[1749779494791,0.04667274,142.96,142.95,6.9899]
[1749779495087,0.04667274,142.96,142.94,0.046581]
[1749779495292,0.04667274,142.96,142.94,7.036581]
[1749779495491,0.04667274,142.96,142.94,0.046581]
[1749779496991,0.04667274,142.96,142.94,7.036781]
[1749779497486,0.04667274,142.96,142.94,0.046581]
[1749779498091,0.04667274,142.96,142.94,7.036581]
[1749779498581,0.04667274,142.96,142.95,6.9899]
[1749779500894,0.04667274,142.96,142.94,0.046581]
[1749779501092,167.10667274,142.96,142.94,0.046581]
[1749779501395,179.34905519,142.96,142.9,6.992]
[1749779501598,179.30238245,142.96,142.86,14.57038245]
[1749779501896,6.9905,142.94,142.86,2.328]
[1749779502190,55.34,142.93,142.86,2.328]
[1749779502385,55.34,142.93,142.9,6.992]
[1749779502586,0.05204982,142.91,142.9,6.992]
[1749779503190,0.05204982,142.91,142.89,0.04720458]
[1749779503691,0.05204982,142.91,142.9,6.9923]
[1749779504192,0.05204982,142.91,142.9,4.0]
[1749779505088,0.05204982,142.91,142.9,0.3771]
[1749779505290,7.04384982,142.91,142.89,0.04720458]
[1749779505490,166.93204982,142.91,142.89,0.04720458]
[1749779505686,471.4343,142.97,142.93,6.9905]
[1749779505887,464.4451,142.97,142.93,6.9905]
[1749779506294,166.86,142.96,142.93,6.9905]
[1749779506694,166.91257366,142.96,142.93,7.0348379]
[1749779507093,166.91257366,142.96,142.94,6.9902]
[1749779507295,166.87257366,142.96,142.93,4.0443379]
[1749779507495,12.24238245,142.95,142.83,12.24238245]
[1749779507692,166.82,142.96,142.85,12.24238245]
[1749779508391,166.82,142.96,142.89,0.04899671]
[1749779508701,0.0453811,142.92,142.91,6.9918]
[1749779508897,0.0529296,142.93,142.9,0.04666525]
[1749779509101,0.05214156,142.93,142.9,0.04538318]
[1749779509297,0.05214156,142.93,142.91,6.9918]
[1749779510298,0.05214156,142.93,142.92,6.9913]
[1749779510497,0.05214156,142.93,142.9,4.04538318]
[1749779510897,0.05214156,142.93,142.9,11.03738318]
[1749779511200,54.72,142.92,142.9,4.04538318]
[1749779512398,54.72,142.92,142.9,11.03758318]
[1749779512800,54.72,142.92,142.9,4.04538318]
[1749779513702,12.24238245,142.91,142.9,4.04538318]
[1749779513902,54.72,142.92,142.9,4.04538318]
[1749779514703,54.72,142.92,142.9,11.03738318]
[1749779514902,54.72,142.92,142.9,4.04538318]
[1749779515202,54.72,142.92,142.91,6.9918]
[1749779516201,0.05214156,142.93,142.92,6.9913]
[1749779516593,4.156e-05,142.93,142.92,6.9913]
[1749779516800,54.72,143.0,142.9,16.28776563]
[1749779516999,6.9879,142.99,142.9,16.24238245]
[1749779517200,12.24238245,142.99,142.94,6.9901]
[1749779517401,12.24238245,142.99,142.9,4.0]
[1749779517601,6.9891,142.97,142.9,4.0]
[1749779517907,0.04755533,142.96,142.93,0.05313119]
[1749779519701,0.04755533,142.96,142.95,6.9899]
[1749779521004,0.04755533,142.96,142.94,6.9901]
[1749779521307,54.72,142.95,142.93,0.05313119]
[1749779521498,166.42,142.94,142.89,6.9928]
[1749779521700,19.23358245,142.93,142.87,2.2675]
[1749779521902,12.24238245,142.93,142.82,14.42368245]
[1749779522104,12.24238245,142.93,142.87,6.9935]
[1749779522298,6.993,142.89,142.82,4.4076]
[1749779522606,54.77215064,142.88,142.87,6.9938]
[1749779522997,54.77215064,142.88,142.85,0.05000728]
[1749779523201,54.77215064,142.88,142.86,6.9943]
[1749779523408,54.77215064,142.88,142.85,0.05000728]
[1749779523809,54.77215064,142.88,142.73,14.001]
[1749779523810,12.24238245,142.87,142.78,2.1742]
[1749779524014,12.24238245,142.85,142.75,2.1844]
[1749779524509,6.9956,142.84,142.75,2.1844]
[1749779524807,2.3249,142.87,142.86,6.9943]
[1749779525105,2.3249,142.87,142.75,2.1844]
[1749779525106,54.72,142.89,142.82,12.24238245]
[1749779525302,54.72,142.89,142.83,19.00978245]
[1749779525712,54.72,142.89,142.88,6.9933]
[1749779525898,54.72,142.89,142.87,0.04916621]
[1749779526207,54.72,142.89,142.88,6.9933]
[1749779526909,0.04759377,142.9,142.89,6.9928]
[1749779527106,9.377e-05,142.9,142.89,6.9928]
[1749779527608,33.20529377,142.93,142.92,6.9913]
[1749779527910,54.72,142.97,142.89,12.24238245]
[1749779528109,54.72,142.97,142.96,6.9894]
[1749779528327,30.7993,142.97,142.96,6.9894]
[1749779528605,3.44e-05,142.98,142.95,0.04527123]
[1749779528798,3.44e-05,142.98,142.97,6.9889]
[1749779530013,3.44e-05,142.98,142.96,6.9892]
[1749779530509,3.44e-05,142.98,142.97,6.9889]
[1749779531904,3.44e-05,142.98,142.96,6.9892]
[1749779532108,3.44e-05,142.98,142.95,0.04527123]
[1749779532512,3.06689003,142.97,142.96,6.9894]
[1749779532711,3.44e-05,142.98,142.95,0.04527123]
[1749779533306,3.44e-05,142.98,142.97,6.9889]
[1749779534009,3.44e-05,142.98,142.97,26.23128245]
[1749779534407,3.44e-05,142.98,142.97,28.56258245]
[1749779535003,457.48,143.09,142.97,21.57368245]
[1749779535203,457.48,143.09,143.0,12.24238245]
[1749779535402,3.05885826,143.08,143.07,6.984]
[1749779535702,3.06269047,143.08,143.0,12.24238245]
[1749779535907,457.48,143.09,143.03,0.05193964]
[1749779536102,0.04746778,143.07,143.03,0.05193964]
[1749779536511,0.04746778,143.07,143.06,6.9845]
[1749779537506,0.04746778,143.07,143.03,0.05193964]
[1749779540110,0.04746778,143.07,143.06,6.9845]
[1749779540407,0.04746778,143.07,143.03,0.05193964]
[1749779542110,0.04746778,143.07,143.06,6.9845]
[1749779542508,222.0545,143.13,143.07,6.9839]
[1749779542709,3.07848167,143.12,143.04,2.3255]
[1749779543017,8.02430549,143.11,143.08,6.9832]
[1749779543213,15.31627081,143.1,143.01,2.1782]
[1749779543410,0.05389508,143.07,143.04,0.04830126]
[1749779543614,3.08875376,143.06,143.04,0.04830126]
[1749779543810,0.05389508,143.07,143.04,0.04830126]
[1749779544318,0.05389508,143.07,143.04,12.2860904]
[1749779545205,0.05389508,143.07,143.06,6.9845]
[1749779545407,404.9994,143.16,143.06,12.23778914]
[1749779545613,15.04084002,143.15,143.1,6.9822]
[1749779545811,8.06042674,143.14,143.06,12.23778914]
[1749779546012,3.09073524,143.13,143.07,2.357]
[1749779546217,404.9994,143.16,143.12,6.9811]
[1749779546617,0.0297441,143.15,143.13,0.05228614]
[1749779548418,7.0100441,143.15,143.13,0.05228614]
[1749779548617,0.0297441,143.15,143.13,0.05228614]
[1749779549124,0.0297441,143.15,143.13,4.05228614]
[1749779549425,19.21838914,143.14,143.13,4.00037519]
[1749779549623,21.54058914,143.14,143.09,6.9827]
[1749779549921,0.0297441,143.15,143.13,6.9811]
[1749779550124,54.1,143.17,143.1,12.23778914]
[1749779550518,1.21616663,143.2,143.1,12.23778914]
[1749779550830,0.04536447,143.16,143.14,0.05271866]
[1749779551017,0.04859105,143.16,143.14,0.04882159]
[1749779551223,0.04859105,143.16,143.15,6.9801]
[1749779551813,54.08,143.21,143.19,6.9781]
[1749779552016,54.08,143.21,143.15,4.0]
[1749779552515,66.31778914,143.21,143.15,4.0]
[1749779552720,0.03343919,143.19,143.17,0.05064353]
[1749779553425,0.03343919,143.19,143.18,6.9786]
[1749779553624,0.03343919,143.19,143.17,0.05064353]
[1749779553922,6.9786,143.18,143.17,0.05064353]
[1749779554123,12.23778914,143.18,143.15,4.0]
[1749779554321,12.23778914,143.16,143.07,2.175]
[1749779554523,73.27758914,143.16,143.12,6.9814]
[1749779554824,54.06,143.16,143.08,12.23778914]
[1749779555022,0.0485711,143.13,143.11,0.04552557]
[1749779555620,12.23778914,143.12,143.11,0.04552557]
[1749779555819,0.0485711,143.13,143.11,0.04552557]
[1749779556219,6.9816,143.12,143.11,0.04552557]
[1749779556421,0.0485711,143.13,143.11,4.04552557]
[1749779557322,0.0485711,143.13,143.11,11.02742557]
[1749779557727,0.0485711,143.13,143.12,6.9816]
[1749779557925,0.0485711,143.13,143.11,4.04552557]
[1749779559020,0.0485711,143.13,143.11,11.02742557]
[1749779559221,0.0485711,143.13,143.11,4.04552557]
[1749779559627,0.0485711,143.13,143.11,11.02712557]
[1749779559825,0.0485711,143.13,143.11,4.04552557]
[1749779560022,12.28064008,143.13,143.11,4.04552557]
[1749779560320,19.26214008,143.13,143.11,4.04552557]
[1749779560525,54.06,143.12,143.04,2.2452]
[1749779560717,12.23206898,143.11,143.04,2.2452]
[1749779560919,19.21536898,143.09,143.0,54.06]
[1749779561236,12.23206898,143.09,143.0,54.06]
[1749779561418,12.23206898,143.09,143.0,56.315]
[1749779561623,0.04599737,143.06,143.05,6.9847]
[1749779561822,0.0517595,143.07,143.04,0.05383097]
[1749779562325,0.0517595,143.07,143.06,6.9845]
[1749779562730,0.0517595,143.07,143.06,10.9845]
[1749779563728,0.0517595,143.07,143.06,4.0]
[1749779564828,0.0517595,143.07,143.06,10.9845]
[1749779565030,0.0517595,143.07,143.06,4.0]
[1749779565833,53.5717595,143.07,143.06,4.0]
[1749779566233,60.5557595,143.07,143.06,4.0]
[1749779566432,53.5717595,143.07,143.06,4.0]
[1749779567323,60.5557595,143.07,143.06,4.0]
[1749779567927,72.78782848,143.07,143.06,4.0]
[1749779569036,6.985,143.05,143.04,0.05383097]
[1749779569533,6.9849,143.06,143.04,0.05383097]
[1749779569925,230.72382848,143.07,143.04,0.05383097]
[1749779570236,19.21706898,143.05,143.04,0.05383097]
[1749779570431,18.01614371,143.05,142.97,6.9887]
[1749779570631,18.01614371,143.05,142.93,4.6001]
[1749779570632,6.9883,142.99,142.93,4.6001]
[1749779570833,60.5283,142.99,142.93,4.6001]
[1749779571033,53.54,142.99,142.96,6.989]
[1749779571430,53.59079675,142.99,142.96,7.03723502]
[1749779571834,60.57869675,142.99,142.96,7.03723502]
[1749779572034,53.59079675,142.99,142.96,0.04823502]
[1749779572633,53.59079675,142.99,142.97,6.9884]
[1749779572939,53.59079675,142.99,142.96,0.04823502]
[1749779572940,0.05079675,142.99,142.96,0.04823502]
[1749779573135,53.54,143.03,142.96,0.04823502]
[1749779573342,53.54,143.07,143.0,7.9130674]
[1749779573543,5.80327357,143.06,143.0,7.9130674]
[1749779574036,53.54,143.07,143.01,4.53]
[1749779574233,0.05081963,143.05,143.03,0.04891157]
[1749779575747,0.05081963,143.05,143.04,6.9855]
[1749779577443,0.05081963,143.05,143.03,7.03481157]
[1749779577640,0.05081963,143.05,143.03,0.04891157]
[1749779578050,0.05081963,143.05,143.03,7.03451157]
[1749779578241,0.05081963,143.05,143.03,0.04891157]
[1749779578638,0.05081963,143.05,143.04,6.9855]
[1749779579542,0.05081963,143.05,143.03,7.03471157]
[1749779579944,0.05081963,143.05,143.04,6.9855]
[1749779580345,0.05081963,143.05,143.03,0.04891157]
[1749779580647,0.05081963,143.05,143.04,6.9855]
[1749779581040,53.56,143.1,143.03,0.04891157]
[1749779581246,6.35374273,143.14,143.07,12.24089213]
[1749779581446,59.89374273,143.16,143.08,2.1908]
[1749779581652,6.9804,143.15,143.08,2.1908]
[1749779582148,0.05390005,143.13,143.12,6.9816]
[1749779582550,0.05390005,143.13,143.1,0.0459716]
[1749779582946,0.05390005,143.13,143.07,4.0]
[1749779582947,12.24089213,143.12,143.07,4.0]
[1749779583145,12.24089213,143.1,143.07,4.0]
[1749779583452,53.54,143.11,143.07,4.0]
[1749779584045,0.046196,143.1,143.08,0.05157873]
[1749779584547,0.046196,143.1,143.09,6.983]
[1749779584747,0.046196,143.1,143.08,0.05157873]
[1749779584947,6.35374273,143.15,143.08,0.05157873]
[1749779585148,12.24089213,143.15,143.08,0.05157873]
[1749779585344,12.24089213,143.13,143.08,0.05157873]
[1749779585655,6.9835,143.08,143.07,4.0]
[1749779585946,53.54,143.09,143.07,4.0]
[1749779586149,53.58973191,143.09,143.08,6.9835]
[1749779586949,0.04973191,143.09,143.08,6.9835]
[1749779587950,0.04973191,143.09,143.07,4.0]
[1749779589253,0.04973191,143.09,143.08,6.9835]
[1749779589453,0.04973191,143.09,143.07,4.0]
[1749779591658,0.04973191,143.09,143.08,6.9835]
[1749779593360,60.5214,143.13,143.07,4.0]
[1749779593749,53.54,143.13,143.06,0.05165302]
[1749779593955,53.54,143.13,143.09,6.9826]
[1749779594155,53.54,143.13,143.06,4.0]
[1749779594359,0.03186656,143.11,143.08,0.05064194]
[1749779594762,53.54,143.17,143.09,12.24089213]
[1749779594959,6.9778,143.2,143.11,12.24089213]
[1749779595159,456.0,143.21,143.13,12.24089213]
[1749779595358,5.78250902,143.2,143.14,2.34]
[1749779595551,462.9774,143.21,143.17,6.9789]
[1749779595868,462.9774,143.21,143.18,0.05184045]
[1749779596568,456.0,143.21,143.18,7.03044045]
[1749779596757,53.54,143.21,143.18,0.05184045]
[1749779597156,53.54,143.21,143.19,6.9779]
[1749779597553,67.22693649,143.29,143.19,7.89319376]
[1749779597765,8.46569849,143.31,143.23,0.04756071]
[1749779597766,6.9755,143.25,143.23,0.04756071]
[1749779597969,6.9755,143.25,143.23,0.04758138]
[1749779598265,6.9757,143.24,143.23,0.04758138]
[1749779598764,12.7296524,143.24,143.23,0.04758138]
[1749779598954,20.62284616,143.24,143.23,0.04758138]
[1749779599562,14.86889376,143.24,143.23,0.04758138]
[1749779599760,20.61945292,143.24,143.23,0.04758138]
[1749779600152,14.86889376,143.24,143.23,0.04758138]
[1749779600363,20.62212651,143.24,143.23,8.138e-05]
[1749779600758,6.9776,143.21,143.16,2.2931]
[1749779600957,60.85319376,143.22,143.16,2.2931]
[1749779601162,60.85319376,143.22,143.17,6.979]
[1749779601362,6.9774,143.21,143.16,2.2931]
[1749779601562,60.85319376,143.22,143.16,2.2931]
[1749779601769,0.04748584,143.2,143.18,7.030587]
[1749779602062,0.04748584,143.2,143.18,0.052287]
[1749779602462,0.04748584,143.2,143.19,6.9782]
[1749779604165,0.04748584,143.2,143.18,7.030687]
[1749779604362,0.04748584,143.2,143.18,0.052287]
[1749779604961,0.04748584,143.2,143.19,6.9782]
[1749779605269,52.96,143.22,143.19,6.9782]
[1749779605770,52.96,143.22,143.2,6.9776]
[1749779605957,52.96,143.22,143.18,0.052287]
[1749779606363,52.96,143.22,143.19,6.9779]
[1749779606566,52.96,143.22,143.18,0.052287]
[1749779606968,52.96,143.22,143.21,6.9772]
[1749779607866,52.96,143.22,143.2,6.9775]
[1749779608760,455.2,143.26,143.19,7.89392524]
[1749779608959,7.89392524,143.31,143.23,7.89392524]
[1749779609164,60.83392524,143.31,143.26,7.01978082]
[1749779609366,60.83392524,143.31,143.26,0.04538082]
[1749779609667,60.83392524,143.31,143.26,7.02008082]
[1749779609868,52.94,143.31,143.26,0.04538082]
[1749779610366,59.9127,143.31,143.27,6.9741]
[1749779610578,52.94,143.31,143.27,6.9741]
[1749779610761,52.94,143.31,143.26,0.04538082]
[1749779612067,7.88401747,143.3,143.26,0.04538082]
[1749779612873,52.94,143.31,143.26,0.04538082]
[1749779616173,52.94,143.31,143.26,7.92939829]
[1749779616373,402.1,143.33,143.26,10.17709829]
[1749779616667,163.48,143.34,143.26,10.17709829]